lending/lending_fUSD_20240111
["ID","MTS","AMOUNT","RATE_DAILY","PERIOD"]
[311270566,1705008638993,-210.30961633,0.00034216,2]
[311270568,1705008639002,-153.84,0.00034273,2]
[311270570,1705008639012,-164.68,0.00034389,2]
[311270572,1705008639021,-295.18,0.00034521,2]
[311270574,1705008639030,-541.72,0.00034552,2]
[311270576,1705008639039,-210.30961633,0.00034558,2]
[311270578,1705008639049,-202.0,0.00034617,8]
[311270580,1705008639058,-180.0,0.00034658,2]
[311270582,1705008639067,-168.89,0.00034712,2]
[311270584,1705008639076,-202.06,0.00034777,2]
[311270586,1705008639085,-165.97418147,0.00034899,8]
[311270588,1705008639097,-1023.72283729,0.000349,2]
[311270590,1705008639107,-226.52882017,0.000349,4]
[311270592,1705008639117,-152.99853616,0.000349,2]
[311270594,1705008639126,-192.57271965,0.000349,2]
[311270596,1705008639135,-1615.05087477,0.000349,2]
[311270598,1705008639145,-288.63333334,0.000349,2]
[311270600,1705008639155,-554.75077798,0.000349,2]
[311270602,1705008639164,-210.30961633,0.000349,2]
[311270604,1705008639174,-640.66464115,0.0003498,3]
[311270606,1705008639183,-69069.118013,0.00034989,7]
[311270608,1705008639192,-263.49556138,0.00034989,2]
[311270610,1705008639201,-150000.0,0.00034999,3]
[311270612,1705008639211,-150000.0,0.00034999,3]
[311270614,1705008639220,-150000.0,0.00034999,3]
[311270616,1705008639229,-150000.0,0.00034999,3]
[311270618,1705008639238,-108194.38895573,0.00034999,3]
[311270620,1705008639249,-583.42023105,0.00034999,4]
[311270622,1705008639259,-255.41007841,0.00035,4]
[311270624,1705008639269,-1804.3259406,0.00035,4]
[311270626,1705008639278,-574641.08226763,0.00035,2]
[311270629,1705008639293,-114065.73195016,0.00035,2]
[311270631,1705008639302,-16499.22203045,0.00035,2]
[311270652,1705008639482,-2500.0,0.00035,2]
[311270654,1705008639496,-800.0,0.00035,3]
[311270656,1705008639506,-2500.0,0.00035,7]
[311270658,1705008639515,-2528.67982368,0.00035,10]
[311270660,1705008639524,-3412.80530229,0.00035,3]
[311270662,1705008639533,-4795.82816389,0.00035,7]
[311270664,1705008639542,-185.50990881,0.00035,4]
[311270666,1705008639552,-619.07656999,0.00035,4]
[311270668,1705008639561,-196216.91138282,0.00035,2]
[311270671,1705008639573,-17126.82835855,0.00035,2]
[311270673,1705008639583,-150.0,0.00035,20]
[311270675,1705008639592,-450.0,0.0003502,3]
[311270677,1705008639601,-168.89,0.00035056,2]
[311270679,1705008639610,-153.84,0.00035281,2]
[311270681,1705008639619,-202.0,0.00035285,10]
[311270683,1705008639628,-168.89,0.000354,2]
[311270685,1705008639637,-541.72,0.00035531,2]
[311270687,1705008639646,-200.0,0.00035571,7]
[311270689,1705008639655,-188.22,0.00035572,2]
[311270691,1705008639664,-160.10630196,0.000356,4]
[311270693,1705008639674,-168.89,0.00035744,2]
[311270695,1705008639683,-152.9985358,0.00035756,2]
[311270697,1705008639692,-439.03,0.00035794,2]
[311270699,1705008639701,-295.18,0.00035798,2]
[311270701,1705008639710,-22136.77,0.000358,7]
[311270703,1705008639719,-16454.73,0.000358,7]
[311270706,1705008639729,-3952.25,0.000358,7]
[311270708,1705008639738,-1000.0,0.000359,2]
[311270710,1705008639748,-943.0,0.000359,2]
[311270712,1705008639756,-310.0,0.000359,2]
[311270714,1705008639765,-626.0,0.000359,2]
[311270716,1705008639774,-561.0,0.000359,2]
[311270718,1705008639783,-224.0,0.000359,2]
[311270720,1705008639792,-2309.0,0.000359,2]
[311270722,1705008639800,-202.0,0.00035953,11]
[311270724,1705008639809,-439.03,0.00035983,2]
[311270726,1705008639818,-2500.0,0.00036,10]
[311270728,1705008639827,-168.89,0.00036087,2]
[311270730,1705008639836,-171.18299284,0.00036089,2]
[311270732,1705008639845,-439.03,0.00036171,2]
[311270734,1705008639854,-500.0,0.000362,2]
[311270736,1705008639863,-153.84,0.00036289,2]
[311270738,1705008639872,-439.03,0.0003636,2]
[311270740,1705008639881,-1046.1504,0.000364,2]
[311270742,1705008639890,-22136.77,0.000364,7]
[311270744,1705008639899,-16454.73,0.000364,7]
[311270746,1705008639908,-3952.25,0.000364,7]
[311270748,1705008639917,-159.18881728,0.00036416,2]
[311270750,1705008639926,-168.89,0.00036431,2]
[311270752,1705008639935,-1023.72283719,0.00036479,2]
[311270753,1705008639945,-643.11,0.00036479,2]
[311270754,1705008639954,-200.0,0.000365,5]
[311270755,1705008639963,-20000.0,0.000365,6]
[311270756,1705008639972,-2500.0,0.000365,21]
[311270757,1705008639982,-541.72,0.00036509,2]
[311270758,1705008639992,-268.81134427,0.0003652,8]
[311270759,1705008640001,-268.81134425,0.0003652,8]
[311270760,1705008640010,-268.81134425,0.0003652,8]
[311270761,1705008640018,-439.03,0.00036548,2]
[311270762,1705008640027,-1058.57,0.00036613,15]
[311270763,1705008640038,-152.9985358,0.00036613,2]
[311270765,1705008640048,-1000.0,0.00036614,2]
[311270767,1705008640057,-202.0,0.00036621,12]
[311270769,1705008640066,-1845.72,0.00036691,2]
[311270771,1705008640076,-439.03,0.00036736,2]
[311270773,1705008640085,-168.89,0.00036775,2]
[311270775,1705008640094,-439.03,0.00036925,2]
[311270777,1705008640104,-1397.68747687,0.00037,7]
[311270779,1705008640113,-5000.0,0.00037,3]
[311270781,1705008640122,-850.0,0.00037,3]
[311270783,1705008640132,-2500.0,0.00037,21]
[311270785,1705008640143,-667.72309525,0.00037,7]
[311270787,1705008640153,-295.18,0.00037075,2]
[311270789,1705008640162,-22136.77,0.000371,7]
[311270791,1705008640171,-16454.73,0.000371,7]
[311270793,1705008640181,-3952.25,0.000371,7]
[311270795,1705008640190,-439.03,0.00037113,2]
[311270797,1705008640199,-168.89,0.00037118,2]
[311270799,1705008640208,-263.49556138,0.00037207,2]
[311270801,1705008640217,-328388.83017243,0.00037217,3]
[311270841,1705008640572,-2212.0210525,0.00037217,3]
[311270843,1705008640584,-1711.8021486,0.00037217,3]
[311270848,1705008640619,-674.975,0.00037217,3]
[311270895,1705008641061,-267.89736832,0.00034999,2]
[311270900,1705008641093,-232.10263168,0.00034999,2]
[311270902,1705008641102,-28.87596924,0.00034999,2]
[311270911,1705008641183,-466.91033988,0.00034999,2]
[311270914,1705008641192,-647.6084412,0.00034999,2]
[311270916,1705008641201,-330.24890858,0.00034999,2]
[311270918,1705008641213,-643.0935095,0.00034999,2]
[311270919,1705008641223,-388.56506472,0.00034999,7]
[311270921,1705008641232,-212.47984676,0.00034999,7]
[311270923,1705008641241,-500.0,0.00034999,7]
[311270925,1705008641250,-357.32013212,0.00034999,7]
[311270927,1705008641261,-1069084.07850494,0.00037217,3]
[311270930,1705008641271,-64205.568,0.00037217,2]
[311270931,1705008641280,-1091.202,0.00037217,2]
[311270933,1705008641289,-202.0,0.00037289,14]
[311270935,1705008641299,-153.84,0.00037297,2]
[311270937,1705008641309,-439.03,0.00037302,2]
[311270940,1705008641320,-19511.173418,0.000374,2]
[311270942,1705008641330,-150.53995041,0.0003742,3]
[311270944,1705008641339,-150.53995041,0.0003742,4]
[311270946,1705008641349,-150.53995041,0.0003742,2]
[311270947,1705008641362,-150.53995041,0.0003742,5]
[311270950,1705008641371,-150.53995041,0.0003742,6]
[311270951,1705008641380,-150.53995041,0.0003742,2]
[311270953,1705008641389,-168.89,0.00037462,2]
[311270955,1705008641398,-152.9985358,0.00037469,2]
[311270957,1705008641407,-541.72,0.00037488,2]
[311270959,1705008641416,-439.03,0.0003749,2]
[311270961,1705008641426,-1490.0,0.000375,12]
[311270964,1705008641436,-2500.0,0.000375,30]
[311270966,1705008641445,-268.499971,0.00037534,14]
[311270968,1705008641454,-305.038799,0.00037547,30]
[311270970,1705008641462,-1966.56789,0.00037547,30]
[311270971,1705008641471,-439.03,0.00037678,2]
[311270974,1705008641480,-187.38265917,0.00037698,4]
[311270976,1705008641490,-22136.77,0.000377,7]
[311270977,1705008641499,-16454.73,0.000377,7]
[311270980,1705008641508,-270.17,0.000377,2]
[311270982,1705008641518,-3952.25,0.000377,7]
[311270984,1705008641527,-218.68581734,0.00037713,7]
[311270986,1705008641536,-268.81134425,0.00037762,10]
[311270988,1705008641545,-3586.0,0.0003779,3]
[311270990,1705008641554,-1581.31,0.000378,3]
[311270992,1705008641563,-1581.31,0.000378,3]
[311270994,1705008641572,-1581.31,0.000378,3]
[311270996,1705008641581,-1581.31,0.000378,3]
[311270998,1705008641590,-1581.31,0.000378,3]
[311271000,1705008641599,-1581.31,0.000378,3]
[311271002,1705008641608,-1581.31,0.000378,3]
[311271004,1705008641617,-1581.31,0.000378,3]
[311271006,1705008641626,-1581.31,0.000378,3]
[311271008,1705008641635,-1581.31,0.000378,3]
[311271010,1705008641644,-1581.31,0.000378,3]
[311271012,1705008641653,-1581.31,0.000378,3]
[311271014,1705008641663,-1581.31,0.000378,3]
[311271016,1705008641672,-1581.31,0.000378,3]
[311271018,1705008641682,-1581.31,0.000378,3]
[311271020,1705008641690,-1581.31,0.000378,3]
[311271022,1705008641699,-1581.31,0.000378,3]
[311271024,1705008641708,-1581.31,0.000378,3]
[311271026,1705008641718,-1581.31,0.000378,3]
[311271028,1705008641727,-1581.31,0.000378,3]
[311271030,1705008641737,-168.89,0.00037806,2]
[311271032,1705008641747,-150.53995041,0.00037856,2]
[311271034,1705008641756,-150.53995041,0.00037856,2]
[311271036,1705008641765,-150.53995041,0.00037856,2]
[311271038,1705008641774,-268.17449951,0.00037866,2]
[311271040,1705008641783,-439.03,0.00037867,2]
[311271042,1705008641792,-150.53995041,0.0003788,3]
[311271044,1705008641801,-150.53995041,0.0003789,2]
[311271046,1705008641810,-1634.0,0.0003789,3]
[311271048,1705008641820,-150.0,0.00037899,2]
[311271050,1705008641829,-150.0,0.00037899,2]
[311271052,1705008641839,-618265.850598,0.000379,2]
[311271054,1705008641847,-150.53995041,0.00037951,6]
[311271056,1705008641857,-202.0,0.00037957,15]
[311271058,1705008641867,-12253.54615371,0.00037961,12]
[311271060,1705008641876,-158.73998173,0.00037966,2]
[311271062,1705008641884,-8213.64606973,0.00037972,11]
[311271064,1705008641893,-1000.0,0.00038,2]
[311271066,1705008641903,-1660.45577482,0.00038,4]
[311271068,1705008641912,-156.0,0.00038,2]
[311271070,1705008641920,-2500.0,0.00038,21]
[311271072,1705008641930,-10951.41513999,0.00038003,12]
[311271074,1705008641939,-439.03,0.00038055,2]
[311271076,1705008641948,-1023.72283719,0.00038058,2]
[311271078,1705008641957,-168.89,0.00038149,2]
[311271080,1705008641966,-439.03,0.00038243,2]
[311271082,1705008641975,-22136.77,0.000383,7]
[311271085,1705008641986,-16454.73,0.000383,7]
[311271087,1705008641997,-3952.25,0.000383,7]
[311271089,1705008642006,-202.06,0.00038305,2]
[311271091,1705008642015,-153.84,0.00038305,2]
[311271093,1705008642023,-152.9985358,0.00038326,2]
[311271095,1705008642033,-22735.9795329,0.0003833,10]
[311271097,1705008642043,-295.18,0.00038352,2]
[311271099,1705008642053,-1002.23462108,0.00038356,30]
[311271101,1705008642062,-666.0,0.00038356,2]
[311271102,1705008642071,-239.88938086,0.00038356,2]
[311271105,1705008642083,-1000.0,0.00038356,2]
[311271107,1705008642093,-1000.0,0.00038356,2]
[311271109,1705008642102,-1000.0,0.00038356,2]
[311271111,1705008642110,-1000.0,0.00038356,2]
[311271113,1705008642122,-1000.0,0.00038356,2]
[311271115,1705008642132,-1000.0,0.00038356,2]
[311271117,1705008642141,-1000.0,0.00038356,2]
[311271119,1705008642152,-1000.0,0.00038356,2]
[311271121,1705008642161,-1000.0,0.00038356,2]
[311271123,1705008642170,-1000.0,0.00038356,2]
[311271126,1705008642179,-1000.0,0.00038356,2]
[311271127,1705008642188,-1000.0,0.00038356,2]
[311271168,1705008642374,-1000.0,0.00038356,2]
[311271171,1705008642384,-1000.0,0.00038356,2]
[311271174,1705008642393,-1000.0,0.00038356,2]
[311271177,1705008642402,-1000.0,0.00038356,2]
[311271181,1705008642411,-1000.0,0.00038356,2]
[311271184,1705008642420,-1000.0,0.00038356,2]
[311271187,1705008642429,-1000.0,0.00038356,2]
[311271190,1705008642439,-1000.0,0.00038356,2]
[311271192,1705008642448,-1000.0,0.00038356,2]
[311271194,1705008642457,-1000.0,0.00038356,2]
[311271196,1705008642466,-1000.0,0.00038356,2]
[311271198,1705008642475,-1000.0,0.00038356,2]
[311271200,1705008642484,-1000.0,0.00038356,2]
[311271202,1705008642494,-1000.0,0.00038356,2]
[311271204,1705008642503,-1000.0,0.00038356,2]
[311271206,1705008642511,-1000.0,0.00038356,2]
[311271208,1705008642520,-432.0,0.00038356,2]
[311271210,1705008642529,-150.0,0.00038399,2]
[311271212,1705008642540,-150.0,0.00038399,2]
[311271214,1705008642549,-8000.0,0.000384,2]
[311271216,1705008642559,-1615.05087477,0.000384,2]
[311271218,1705008642568,-554.75077797,0.000384,2]
[311271220,1705008642577,-439.03,0.00038432,2]
[311271222,1705008642587,-541.72,0.00038466,2]
[311271223,1705008642596,-168.89,0.00038493,2]
[311271224,1705008642604,-488.89674087,0.000385,4]
[311271225,1705008642613,-200.0,0.00038526,20]
[311271226,1705008642622,-800.0,0.00038526,10]
[311271227,1705008642631,-192.57271963,0.00038535,2]
[311271228,1705008642641,-150.653425,0.00038554,7]
[311271229,1705008642650,-439.03,0.0003862,2]
[311271230,1705008642659,-202.0,0.00038625,16]
[311271231,1705008642669,-268.499971,0.0003863,14]
[311271232,1705008642678,-156.23408168,0.00038723,7]
[311271234,1705008642686,-643.11,0.00038743,2]
[311271236,1705008642695,-150.653425,0.00038792,7]
[311271238,1705008642704,-687.34310039,0.00038793,4]
[311271240,1705008642713,-184.87968352,0.000388,24]
[311271242,1705008642722,-975.0,0.000388,16]
[311271244,1705008642731,-160.50739785,0.00038803,7]
[311271246,1705008642740,-188.22,0.00038806,2]
[311271248,1705008642751,-439.03,0.00038809,2]
[311271251,1705008642760,-55555.0,0.00038837,3]
[311271253,1705008642769,-168.89,0.00038837,2]
[311271255,1705008642778,-89122.13225545,0.00038838,5]
[311271256,1705008642787,-500.0,0.000389,2]
[311271259,1705008642796,-1971.7520275,0.000389,13]
[311271261,1705008642806,-22136.77,0.000389,7]
[311271263,1705008642815,-16454.73,0.000389,7]
[311271265,1705008642825,-3952.25,0.000389,7]
[311271267,1705008642834,-170.09,0.00038915,2]
[311271269,1705008642843,-150.53995041,0.00038927,4]
[311271270,1705008642852,-500.0,0.00038937,2]
[311271272,1705008642861,-500.0,0.00038937,2]
[311271274,1705008642870,-500.0,0.00038937,2]
[311271276,1705008642879,-500.0,0.00038937,2]
[311271279,1705008642888,-500.0,0.00038937,2]
[311271280,1705008642898,-500.0,0.00038937,2]
[311271283,1705008642907,-156.23408168,0.00038965,7]
[311271285,1705008642916,-150.653425,0.00038965,7]
[311271287,1705008642926,-281.73212903,0.0003898,2]
[311271288,1705008642939,-1565.0,0.0003899,3]
[311271290,1705008642948,-439.03,0.00038997,2]
[311271292,1705008642957,-150.0,0.00038999,2]
[311271294,1705008642966,-380.29,0.00038999,2]
[311271296,1705008642975,-3000.0,0.00038999,2]
[311271298,1705008642984,-3000.0,0.00038999,2]
[311271300,1705008642994,-3000.0,0.00038999,2]
[311271303,1705008643003,-3000.0,0.00038999,2]
[311271305,1705008643012,-3000.01,0.00038999,2]
[311271307,1705008643022,-150.0,0.00038999,2]
[311271309,1705008643031,-150.0,0.00038999,2]
[311271311,1705008643040,-1427.43973993,0.00039,2]
[311271313,1705008643049,-245.71359517,0.00039,2]
[311271315,1705008643059,-200.0,0.00039,5]
[311271317,1705008643068,-150.0,0.00039,2]
[311271319,1705008643078,-290.9336572,0.00039,2]
[311271321,1705008643087,-900.0,0.00039,3]
[311271323,1705008643097,-2500.0,0.00039,30]
[311271325,1705008643107,-611918.0,0.00039,2]
[311271327,1705008643116,-300.0,0.00039,40]
[311271329,1705008643125,-282.68132749,0.00039,4]
[311271331,1705008643134,-308.18292112,0.00039,5]
[311271333,1705008643143,-151.0,0.00039,7]
[311271335,1705008643152,-151.0,0.00039,7]
[311271337,1705008643161,-151.0,0.00039,7]
[311271339,1705008643170,-140880.1629,0.00039,2]
[311271341,1705008643180,-151.0,0.00039,7]
[311271343,1705008643189,-151.0,0.00039,7]
[311271344,1705008643198,-151.0,0.00039,7]
[311271346,1705008643207,-423.187143,0.00039,7]
[311271348,1705008643217,-423.187143,0.00039,7]
[311271351,1705008643226,-197.51049336,0.00039039,2]
[311271353,1705008643235,-1000.0,0.00039042,2]
[311271355,1705008643244,-1000.0,0.000391,2]
[311271357,1705008643253,-150.53995041,0.0003916,6]
[311271358,1705008643263,-150.53995041,0.0003916,4]
[311271360,1705008643272,-150.53995041,0.0003916,8]
[311271362,1705008643281,-168.89,0.0003918,2]
[311271364,1705008643290,-152.9985358,0.00039182,3]
[311271366,1705008643299,-439.03,0.00039185,2]
[311271368,1705008643307,-199.42999346,0.000392,2]
[311271370,1705008643316,-1000.0,0.000392,2]
[311271372,1705008643326,-1877.64,0.00039238,2]
[311271374,1705008643335,-640.04,0.00039238,2]
[311271376,1705008643343,-1878.42,0.00039238,2]
[311271378,1705008643353,-649.31,0.0003926,2]
[311271380,1705008643362,-995.0,0.00039271,2]
[311271382,1705008643371,-1930.0,0.00039271,2]
[311271384,1705008643380,-592.0,0.00039271,2]
[311271387,1705008643390,-1139.0,0.00039271,2]
[311271388,1705008643400,-425.0,0.00039271,2]
[311271390,1705008643409,-507.0,0.00039271,2]
[311271392,1705008643419,-880.0,0.00039271,2]
[311271395,1705008643429,-235.0,0.00039271,2]
[311271396,1705008643439,-318.0,0.00039271,2]
[311271399,1705008643449,-2414.0,0.00039271,2]
[311271401,1705008643458,-3759.712,0.00039271,2]
[311271403,1705008643467,-5567.0,0.00039271,2]
[311271405,1705008643476,-451.892,0.00039271,2]
[311271407,1705008643485,-1355.0,0.00039271,2]
[311271409,1705008643494,-8080.0,0.00039271,2]
[311271410,1705008643503,-2900.0,0.00039271,2]
[311271412,1705008643515,-4167.0,0.00039271,2]
[311271414,1705008643524,-19673.0,0.00039271,2]
[311271416,1705008643533,-2269.0,0.00039271,2]
[311271418,1705008643542,-3030.0,0.00039271,2]
[311271420,1705008643550,-944.0,0.00039271,2]
[311271422,1705008643559,-834.0,0.00039271,2]
[311271426,1705008643567,-1851.0,0.00039271,2]
[311271430,1705008643576,-1028.0,0.00039271,2]
[311271434,1705008643585,-150.0,0.00039271,2]
[311271438,1705008643594,-1234.0,0.00039271,2]
[311271442,1705008643604,-1251.0,0.00039271,2]
[311271444,1705008643613,-202.0,0.00039293,18]
[311271446,1705008643622,-153.84,0.00039313,2]
[311271449,1705008643632,-439.03,0.00039374,2]
[311271451,1705008643641,-3423.2369454,0.000394,4]
[311271453,1705008643650,-1581.31,0.000394,3]
[311271455,1705008643659,-1581.31,0.000394,3]
[311271457,1705008643668,-1581.31,0.000394,3]
[311271459,1705008643678,-1581.31,0.000394,3]
[311271461,1705008643687,-1581.31,0.000394,3]
[311271463,1705008643697,-1581.31,0.000394,3]
[311271464,1705008643706,-1581.31,0.000394,3]
[311271466,1705008643715,-1581.31,0.000394,3]
[311271469,1705008643725,-1581.31,0.000394,3]
[311271470,1705008643734,-1581.31,0.000394,3]
[311271472,1705008643743,-1581.31,0.000394,3]
[311271475,1705008643753,-1581.31,0.000394,3]
[311271476,1705008643762,-1581.31,0.000394,3]
[311271478,1705008643772,-1581.31,0.000394,3]
[311271480,1705008643781,-1581.31,0.000394,3]
[311271483,1705008643790,-1581.31,0.000394,3]
[311271485,1705008643799,-1581.31,0.000394,3]
[311271487,1705008643809,-1581.31,0.000394,3]
[311271489,1705008643818,-1581.31,0.000394,3]
[311271491,1705008643827,-1581.31,0.000394,3]
[311271493,1705008643837,-150.653425,0.00039419,7]
[311271495,1705008643846,-541.72,0.00039445,2]
[311271497,1705008643855,-150.653425,0.00039448,7]
[311271499,1705008643864,-150.0,0.00039495,2]
[311271501,1705008643873,-7115.8,0.00039498,8]
[311271503,1705008643882,-1000.0,0.00039499,2]
[311271505,1705008643891,-4548.95757275,0.000395,4]
[311271507,1705008643899,-22136.77,0.000395,7]
[311271508,1705008643908,-16454.73,0.000395,7]
[311271510,1705008643918,-1000.0,0.000395,7]
[311271512,1705008643927,-3952.25,0.000395,7]
[311271515,1705008643936,-168.89,0.00039524,2]
[311271517,1705008643945,-200.0,0.00039548,5]
[311271519,1705008643954,-150.0,0.0003958,2]
[311271521,1705008643964,-3000.0,0.000396,2]
[311271523,1705008643973,-150.0,0.00039628,2]
[311271524,1705008643982,-295.18,0.0003963,2]
[311271526,1705008643993,-1023.72283719,0.00039637,2]
[311271528,1705008644002,-150.0,0.00039659,2]
[311271530,1705008644011,-150.0,0.00039678,2]
[311271532,1705008644020,-200.0,0.00039679,20]
[311271535,1705008644030,-800.0,0.00039679,10]
[311271536,1705008644039,-8000.0,0.000397,2]
[311271538,1705008644047,-268.499971,0.00039726,14]
[311271540,1705008644057,-150.0,0.0003973,2]
[311271542,1705008644066,-150.0,0.00039756,2]
[311271544,1705008644075,-150.0,0.00039787,2]
[311271546,1705008644084,-150.0,0.00039787,2]
[311271548,1705008644093,-428.28052565,0.000398,4]
[311271550,1705008644102,-150.0,0.00039818,2]
[311271552,1705008644112,-150.0,0.0003983,2]
[311271554,1705008644121,-157.49782165,0.00039845,7]
[311271556,1705008644131,-150.0,0.00039859,2]
[311271558,1705008644146,-168.89,0.00039868,2]
[311271560,1705008644155,-719.26828792,0.00039884,2]
[311271562,1705008644164,-209.0,0.00039895,2]
[311271564,1705008644173,-2639.2031,0.00039895,2]
[311271567,1705008644184,-7500.0,0.00039895,2]
[311271568,1705008644193,-2648.3532985,0.000399,13]
[311271571,1705008644202,-2000.0,0.000399,4]
[311271573,1705008644212,-350.00046415,0.000399,4]
[311271574,1705008644221,-419.99230514,0.000399,120]
[311271577,1705008644231,-300.0,0.000399,30]
[311271579,1705008644241,-300.0,0.000399,30]
[311271581,1705008644251,-317.03589178,0.000399,30]
[311271583,1705008644260,-151.0,0.0003992,7]
[311271584,1705008644269,-151.0,0.0003992,7]
[311271586,1705008644278,-269.165593,0.0003992,7]
[311271588,1705008644288,-269.165593,0.0003992,7]
[311271590,1705008644297,-151.0,0.0003992,7]
[311271592,1705008644306,-250.0,0.00039931,2]
[311271595,1705008644315,-1869.67538244,0.00039941,15]
[311271597,1705008644324,-6583.86383864,0.00039941,15]
[311271599,1705008644333,-1869.67538244,0.00039942,15]
[311271601,1705008644342,-200.0,0.00039943,15]
[311271602,1705008644351,-6583.86383864,0.00039945,15]
[311271605,1705008644360,-5515.46126604,0.00039946,15]
[311271607,1705008644370,-581.49983968,0.00039946,15]
[311271608,1705008644379,-4727.53822802,0.00039947,15]
[311271610,1705008644388,-5515.46126604,0.00039948,15]
[311271612,1705008644397,-3279.70039081,0.00039948,15]
[311271615,1705008644407,-290.74991982,0.00039948,15]
[311271617,1705008644415,-2757.730633,0.00039948,15]
[311271619,1705008644424,-200.0,0.00039948,15]
[311271621,1705008644434,-200.0,0.00039948,15]
[311271623,1705008644443,-623.0355425,0.00039949,15]
[311271624,1705008644452,-545.97635096,0.00039949,15]
[311271626,1705008644461,-545.97635096,0.00039949,15]
[311271629,1705008644470,-2757.730633,0.00039949,15]
[311271630,1705008644479,-200.0,0.0003995,10]
[311271633,1705008644488,-8273.19189911,0.0003995,10]
[311271634,1705008644499,-200.0,0.0003995,10]
[311271637,1705008644508,-3271.93191935,0.0003995,10]
[311271639,1705008644517,-200.0,0.00039951,10]
[311271641,1705008644527,-5515.46126604,0.00039951,15]
[311271643,1705008644536,-290.74991982,0.00039952,15]
[311271645,1705008644545,-213.1463526,0.00039952,10]
[311271647,1705008644554,-310.74503465,0.00039952,10]
[311271649,1705008644563,-1869.67538244,0.00039952,15]
[311271651,1705008644572,-200.0,0.00039953,10]
[311271653,1705008644581,-623.0355425,0.00039953,15]
[311271654,1705008644590,-200.0,0.00039953,10]
[311271657,1705008644599,-3271.93191935,0.00039953,10]
[311271659,1705008644608,-290.74991987,0.00039953,10]
[311271661,1705008644617,-200.0,0.00039954,10]
[311271663,1705008644627,-623.0355425,0.00039954,15]
[311271664,1705008644636,-200.0,0.00039954,10]
[311271666,1705008644645,-200.0,0.00039957,10]
[311271668,1705008644654,-955.45861426,0.00039957,10]
[311271670,1705008644663,-213.1463526,0.00039957,10]
[311271673,1705008644672,-200.0,0.00039957,10]
[311271674,1705008644681,-3271.93191935,0.00039958,10]
[311271676,1705008644690,-955.45861426,0.00039958,10]
[311271679,1705008644699,-200.0,0.00039958,10]
[311271680,1705008644708,-3271.93191935,0.00039959,10]
[311271682,1705008644718,-1090.31219945,0.00039959,10]
[311271685,1705008644727,-508.81235977,0.00039959,10]
[311271687,1705008644736,-4826.02860783,0.0003996,10]
[311271689,1705008644746,-200.0,0.00039961,10]
[311271691,1705008644754,-202.0,0.00039961,19]
[311271693,1705008644763,-8273.19189911,0.00039961,10]
[311271695,1705008644772,-9067.81277819,0.00039962,10]
[311271697,1705008644781,-200.0,0.00039962,15]
[311271699,1705008644790,-1017.62471951,0.00039963,10]
[311271700,1705008644799,-545.97635096,0.00039963,15]
[311271703,1705008644809,-581.49983968,0.00039963,15]
[311271705,1705008644818,-290.74991982,0.00039963,15]
[311271707,1705008644827,-200.0,0.00039963,10]
[311271709,1705008644836,-5181.60730178,0.00039964,15]
[311271711,1705008644845,-4826.02860783,0.00039964,10]
[311271713,1705008644854,-200.0,0.00039965,10]
[311271715,1705008644862,-200.0,0.00039965,15]
[311271717,1705008644871,-11521.7617177,0.00039966,10]
[311271719,1705008644881,-5181.60730178,0.00039966,15]
[311271721,1705008644890,-200.0,0.00039967,10]